bitfinex/quotes_ETHUSD_20240717
["timestamp","ask_amount","ask_price","bid_price","bid_amount"]
[1721243542168,2.93819923,3420.3,3419.7,2.92423]
[1721243542367,0.61089923,3420.2,3419.9,1.047]
[1721243543187,0.61089923,3420.2,3420.1,1.047]
[1721243543498,0.61076035,3420.2,3420.1,1.047]
[1721243544323,0.61076035,3420.3,3420.1,1.047]
[1721243544489,0.61076035,3420.3,3420.1,1.444113]
[1721243544692,0.61076035,3420.4,3420.1,1.444113]
[1721243544886,0.61076035,3420.4,3420.3,1.047]
[1721243545083,0.9190869,3420.5,3420.3,1.047]
[1721243545309,0.61082083,3420.4,3420.3,1.047]
[1721243545516,0.9190869,3420.5,3420.3,1.047]
[1721243545917,0.9190869,3420.4,3420.3,1.047]
[1721243547704,0.98232115,3420.4,3420.3,1.047]
[1721243547969,0.06323425,3420.4,3420.3,1.047]
[1721243548826,0.98232115,3420.4,3420.3,1.047]
[1721243549433,0.06323425,3420.4,3420.3,1.047]
[1721243550157,0.67432404,3420.4,3420.3,1.047]
[1721243550365,0.67432404,3420.4,3419.9,2.92399]
[1721243550666,0.61108979,3420.3,3420.2,1.047]
[1721243551227,0.67432404,3420.3,3420.2,1.047]
[1721243551919,0.06323425,3420.3,3420.2,1.047]
[1721243552443,0.67440197,3420.3,3420.2,1.047]
[1721243552766,0.67440921,3420.3,3420.2,1.047]
[1721243560160,0.06323425,3420.3,3420.2,1.047]
[1721243560465,0.67440921,3420.3,3420.2,2.02189429]
[1721243561261,0.06323425,3420.3,3420.2,2.02189429]
[1721243561593,0.06323425,3420.3,3420.2,1.047]
[1721243561814,0.67440921,3420.3,3420.2,1.047]
[1721243561966,0.06323425,3420.3,3420.2,1.047]
[1721243565617,0.67440921,3420.3,3420.2,1.047]
[1721243566401,0.06323425,3420.3,3420.2,1.047]
[1721243566603,0.67440921,3420.3,3420.2,1.047]
[1721243567871,0.67440921,3420.3,3420.2,1.047]
[1721243568065,0.06323425,3420.3,3420.2,1.047]
[1721243568267,0.06323425,3420.3,3420.2,7.57710129]
[1721243568477,0.61117496,3420.4,3420.3,2.92372]
[1721243568707,0.9190869,3420.5,3420.4,2.92363]
[1721243568907,0.9190869,3420.5,3420.4,3.97063]
[1721243569712,0.9190869,3420.6,3420.4,3.97063]
[1721243572016,0.9190869,3420.5,3420.4,3.97063]
[1721243572379,1.22633853,3420.6,3420.4,3.97063]
[1721243572584,1.22633853,3420.6,3420.4,1.047]
[1721243573182,0.91778169,3420.5,3420.4,1.047]
[1721243573383,1.22633853,3420.5,3420.4,1.047]
[1721243573584,1.22633853,3420.6,3420.0,2.92392]
[1721243573891,0.91780836,3420.3,3420.1,1.047]
[1721243575627,1.22633853,3420.4,3420.1,1.047]
[1721243575628,0.91780836,3420.2,3420.1,1.047]
[1721243576390,0.61206144,3420.2,3420.1,1.047]
[1721243577015,0.91780836,3420.3,3420.1,1.047]
[1721243577329,0.91780836,3420.2,3420.1,1.047]
[1721243577700,0.97819686,3420.2,3420.1,1.047]
[1721243578933,0.0603885,3420.2,3420.1,1.047]
[1721243579821,0.67270034,3420.2,3420.1,4.660395]
[1721243580129,0.67270034,3420.2,3420.1,7.584285]
[1721243580335,0.61231184,3420.3,3420.2,2.9238]
[1721243580500,0.97818868,3420.3,3420.2,3.9283895]
[1721243580703,0.06038032,3420.3,3420.2,3.9283895]
[1721243581538,0.97818868,3420.3,3420.2,3.9283895]
[1721243581992,0.06038032,3420.3,3420.2,3.9283895]
[1721243582330,0.06038032,3420.3,3420.2,2.9238]
[1721243582646,0.97818868,3420.3,3420.2,2.9238]
[1721243586111,0.97818868,3420.3,3420.1,2.92389]
[1721243586311,0.91780836,3420.2,3420.1,2.92389]
[1721243586512,0.97819523,3420.2,3420.1,3.97089]
[1721243586846,0.979451,3420.2,3420.1,1.047]
[1721243588714,0.06038687,3420.2,3420.1,1.047]
[1721243589241,0.06038687,3420.2,3420.0,2.92397]
[1721243589441,0.06038687,3420.2,3420.1,1.047]
[1721243591001,0.06038687,3420.2,3420.1,3.97089]
[1721243591315,0.06038687,3420.2,3420.1,4.660371]
[1721243594251,0.97969899,3420.2,3420.1,4.660371]
[1721243596139,0.97969899,3420.2,3420.1,7.584261]
[1721243597908,0.91931212,3420.2,3420.1,7.584261]
[1721243598107,0.97766305,3420.2,3420.1,7.584261]
[1721243598912,0.05835093,3420.2,3420.1,7.584261]
[1721243599865,0.97790703,3420.2,3420.1,7.584261]
[1721243600472,0.05835093,3420.2,3420.1,12.845251]
[1721243600642,0.05835093,3420.2,3420.1,15.38623863]
[1721243600839,0.61310358,3420.5,3420.4,5.84726]
[1721243601072,0.61310358,3420.6,3420.5,5.84708]
[1721243601371,0.67108801,3420.6,3420.5,5.84708]
[1721243601579,0.05798443,3420.6,3420.5,5.84708]
[1721243601741,0.61310358,3420.7,3420.6,5.84692]
[1721243601942,0.67108801,3420.7,3420.6,6.89392]
[1721243602154,0.67108801,3420.7,3420.6,8.03503069]
[1721243602448,0.05798443,3420.7,3420.6,8.03503069]
[1721243602850,0.9195561,3420.9,3420.8,2.92329]
[1721243603085,0.05798443,3420.7,3420.6,1.047]
[1721243603241,1.22527269,3420.7,3420.6,1.047]
[1721243603444,1.28335891,3420.7,3420.6,1.047]
[1721243603645,0.05808622,3420.7,3420.5,2.92348]
[1721243603880,0.91888069,3420.6,3420.5,2.92348]
[1721243604381,0.97694885,3420.6,3420.5,2.92348]
[1721243605381,0.05806816,3420.6,3420.5,2.92348]
[1721243605846,0.97694885,3420.6,3420.5,2.92348]
[1721243606046,0.05806816,3420.6,3420.5,2.92348]
[1721243607340,0.05806816,3420.6,3420.5,3.612895]
[1721243607583,0.67051255,3420.6,3420.5,3.612895]
[1721243609942,0.67051255,3420.6,3420.4,3.97063]
[1721243609943,0.05806816,3420.6,3420.4,1.047]
[1721243610148,0.6123713,3420.5,3420.1,2.92383]
[1721243610448,0.0580452,3420.4,3420.3,1.047]
[1721243611665,0.67041104,3420.4,3420.3,1.047]
[1721243612178,0.0580452,3420.4,3420.3,1.047]
[1721243613587,0.67070645,3420.4,3420.3,1.047]
[1721243614595,0.0580452,3420.4,3420.3,1.047]
[1721243614803,0.67072365,3420.4,3420.3,1.047]
[1721243615463,0.67072365,3420.4,3420.3,3.97072]
[1721243615870,0.67072365,3420.4,3420.3,7.583887]
[1721243615871,0.0580452,3420.4,3420.3,7.583887]
[1721243617068,0.67072365,3420.4,3420.3,7.583887]
[1721243617388,0.0580452,3420.4,3420.3,7.583887]
[1721243618783,0.67072365,3420.4,3420.3,7.583887]
[1721243619587,0.0580452,3420.4,3420.3,7.583887]
[1721243620066,0.0580452,3420.4,3420.1,5.29965]
[1721243620265,0.61267845,3420.3,3420.1,2.92385]
[1721243620491,0.97692589,3420.4,3420.2,1.047]
[1721243620789,0.61280457,3420.3,3420.2,1.047]
[1721243622101,0.61280457,3420.4,3420.2,3.97075]
[1721243622293,0.61280457,3420.4,3420.3,1.736455]
[1721243622459,0.61280457,3420.4,3420.3,4.660175]
[1721243622658,0.61280457,3420.4,3420.3,3.97072]
[1721243622881,0.67078243,3420.4,3420.3,3.97072]
[1721243623858,0.05797786,3420.4,3420.3,3.97072]
[1721243624074,0.67088777,3420.4,3420.3,3.97072]
[1721243625472,0.05797786,3420.4,3420.3,3.97072]
[1721243627196,0.97685855,3420.4,3420.3,3.97072]
[1721243628171,0.05797786,3420.4,3420.3,3.97072]
[1721243628502,0.05797786,3420.4,3420.3,4.660172]
[1721243628993,0.97685855,3420.4,3420.3,1.736452]
[1721243629173,0.97685855,3420.4,3420.3,1.047]
[1721243631216,0.05797786,3420.4,3420.3,1.047]
[1721243634522,0.97685855,3420.4,3420.3,1.047]
[1721243637605,0.97685855,3420.4,3419.8,10.30412]
[1721243637606,2.4062,3420.3,3419.8,10.30412]
[1721243637820,0.61282835,3420.0,3419.9,1.047]
[1721243638004,1.2256567,3420.1,3419.7,3.97123]
[1721243638207,0.91898257,3419.8,3419.7,3.97123]
[1721243638546,0.9749961,3419.8,3419.7,3.97123]
[1721243638694,0.9749961,3419.8,3419.7,1.047]
[1721243640125,0.05601353,3419.8,3419.7,1.047]
[1721243640305,0.97463412,3419.8,3419.7,1.047]
[1721243640714,0.05601353,3419.8,3419.7,1.047]
[1721243641532,0.66839128,3419.8,3419.7,1.047]
[1721243643630,0.05601353,3419.8,3419.7,1.047]
[1721243643806,0.05601353,3419.8,3419.7,3.97123]
[1721243644130,0.66839128,3419.8,3419.7,1.047]
[1721243645195,3.01489128,3419.8,3419.7,1.047]
[1721243645754,3.01489128,3419.8,3419.2,2.92458]
[1721243645755,3.32113412,3419.8,3419.5,1.047]
[1721243645898,0.61189577,3419.6,3419.5,1.047]
[1721243646518,0.66777627,3419.6,3419.5,1.047]
[1721243647591,0.0558805,3419.6,3419.5,1.047]
[1721243648826,0.66777627,3419.6,3419.5,1.047]
[1721243649392,0.0558805,3419.6,3419.5,1.047]
[1721243649601,0.66777627,3419.6,3419.5,1.047]
[1721243649845,0.0558805,3419.6,3419.5,1.047]
[1721243650019,0.66777627,3419.6,3419.5,1.047]
[1721243650440,0.0558805,3419.6,3419.5,1.047]
[1721243651048,0.0558805,3419.6,3419.5,6.692455]
[1721243651342,0.61189577,3419.8,3419.5,4.368555]
[1721243651525,0.61140179,3419.8,3419.7,1.047]
[1721243652110,0.91862059,3419.9,3419.7,1.047]
[1721243652449,0.61134154,3419.8,3419.5,1.047]
[1721243652624,3.58946872,3419.8,3419.5,1.047]
[1721243652828,3.53558154,3419.7,3419.3,1.047]
[1721243653137,3.13070187,3419.6,3419.3,1.047]
[1721243656446,2.51936033,3419.6,3419.3,1.047]
[1721243656648,5.44368033,3419.6,3419.4,1.047]
[1721243656832,2.92449,3419.4,3419.1,1.047]
[1721243657239,3.53583154,3419.4,3418.9,1.047]
[1721243657613,0.05346569,3419.3,3418.9,1.047]
[1721243658060,0.05346569,3419.3,3419.1,1.047]
[1721243658226,2.97804569,3419.3,3419.1,1.047]
[1721243658753,2.92479,3419.1,3418.5,1.047]
[1721243658913,0.61074151,3419.0,3418.5,1.047]
[1721243659116,0.61074151,3418.9,3418.5,1.047]
[1721243659533,0.05338683,3418.8,3418.5,1.047]
[1721243659734,0.05338683,3418.8,3418.7,1.047]
[1721243660058,2.92483,3419.0,3418.7,1.047]
[1721243660248,0.05333096,3418.8,3418.7,1.047]
[1721243660436,2.92483,3419.0,3418.7,1.047]
[1721243660633,0.61074151,3419.3,3418.9,3.97186]
[1721243660953,0.61074151,3419.4,3419.2,1.047]
[1721243661161,0.61074151,3419.5,3419.2,1.047]
[1721243661467,0.61074151,3419.5,3418.4,9.6428]
[1721243661658,2.92481,3419.1,3418.7,1.047]
[1721243661965,3.53555151,3419.1,3418.7,1.047]
[1721243662454,2.92481,3419.1,3418.7,1.047]
[1721243663277,2.92481,3419.1,3418.7,1.03241079]
[1721243664637,2.92481,3419.1,3418.9,1.047]
[1721243665034,2.92481,3419.1,3418.4,5.18807]
[1721243665035,2.92483,3419.0,3418.2,2.92547]
[1721243665358,2.92481,3419.1,3418.4,1.047]
[1721243665359,2.92497,3418.9,3418.4,1.047]
[1721243665860,2.92497,3418.9,3418.6,1.047]
[1721243666356,0.91862059,3419.3,3418.8,1.047]
[1721243666357,6.45997151,3419.3,3418.8,1.047]
[1721243666773,3.53533151,3419.3,3419.0,1.047]
[1721243666953,2.92459,3419.3,3419.0,1.047]
[1721243667164,3.53533151,3419.3,3419.0,1.047]
[1721243667366,3.53533151,3419.3,3418.8,1.047]
[1721243667686,0.05177783,3419.2,3418.8,1.047]
[1721243667845,3.53533151,3419.3,3418.8,1.047]
[1721243668036,6.45998151,3419.3,3418.8,1.047]
[1721243668373,2.92491,3419.0,3418.3,2.92538]
[1721243668534,5.84982,3419.0,3418.6,1.047]
[1721243668930,0.05177783,3418.9,3418.6,1.047]
[1721243670872,0.05177783,3418.9,3418.8,1.047]
[1721243671536,2.92467,3419.2,3418.8,1.047]
[1721243672234,0.05177783,3419.1,3418.8,1.047]
[1721243672430,0.05177783,3419.1,3418.7,3.97208]
[1721243675997,3.53532151,3419.3,3418.7,3.97208]
[1721243676202,0.05177783,3419.0,3418.7,3.97208]
[1721243676374,3.53532151,3419.3,3418.7,3.97208]
[1721243676571,0.05177783,3418.9,3418.7,3.97208]
[1721243676759,3.53532151,3419.3,3418.7,3.97208]
[1721243677256,0.05177947,3419.2,3418.7,3.97208]
[1721243679296,0.05177947,3419.2,3418.9,1.047]
[1721243679499,3.61074151,3419.4,3418.9,1.047]
[1721243679673,0.0517844,3419.1,3418.9,3.97187]
[1721243679873,3.61074151,3419.4,3418.9,3.97187]
[1721243679874,3.0,3419.4,3418.9,3.97187]
[1721243680094,0.0517844,3419.0,3418.9,3.97187]
[1721243680262,3.0,3419.4,3418.9,3.97187]
[1721243680263,3.61074151,3419.4,3418.9,3.97187]
[1721243680462,0.0517844,3419.3,3418.9,3.97187]
[1721243681264,0.66252591,3419.3,3418.9,3.97187]
[1721243683416,0.61074151,3419.2,3418.9,3.97187]
[1721243683996,0.0517844,3419.1,3418.9,3.97187]
[1721243687115,0.0517844,3419.1,3419.0,5.41243]
[1721243688594,0.66252591,3419.1,3419.0,5.41243]
[1721243691394,0.0517844,3419.1,3419.0,5.41243]
[1721243691790,0.66348326,3419.1,3419.0,5.41243]
[1721243692325,0.0517844,3419.1,3419.0,5.41243]
[1721243693287,0.0517844,3419.1,3418.9,1.047]
[1721243693488,0.61173084,3419.0,3418.9,3.97191]
[1721243693794,0.66353497,3419.0,3418.9,3.97191]
[1721243694126,0.66353497,3419.0,3418.1,7.38]
[1721243694127,0.66353497,3419.0,3418.5,5.36361]
[1721243694331,0.61173084,3418.9,3418.5,6.8974]
[1721243694753,0.05180413,3418.8,3418.5,6.89739]
[1721243695210,0.05180413,3418.8,3418.6,2.92516]
[1721243695409,0.05180413,3418.8,3418.7,1.047]
[1721243697299,0.66353497,3418.8,3418.7,1.047]
[1721243699184,0.66353497,3418.8,3418.7,3.97208]
[1721243699623,0.66410861,3418.8,3418.7,3.97208]
[1721243700138,0.05180413,3418.8,3418.7,3.97208]
[1721243700842,0.66416591,3418.8,3418.7,6.42948]
[1721243701129,0.05180413,3418.8,3418.7,3.97208]
[1721243701330,0.05180413,3418.8,3418.7,6.89716]
[1721243701487,0.66427613,3418.8,3418.7,6.89716]
[1721243701892,0.66427613,3418.8,3418.7,7.832616]
[1721243704096,0.612472,3418.8,3418.7,7.832616]
[1721243704436,0.66426298,3418.8,3418.7,7.832616]
[1721243704813,0.612472,3418.8,3418.7,7.832616]
[1721243705106,0.66426298,3418.8,3418.7,7.832616]
[1721243707154,0.05179098,3418.8,3418.7,7.832616]
[1721243707359,0.612472,3418.8,3418.7,7.832616]
[1721243707519,0.6642827,3418.8,3418.7,7.832616]
[1721243707917,0.6642827,3418.8,3418.2,2.499]
[1721243708160,0.612472,3418.3,3418.1,2.92557]
[1721243708368,0.612472,3418.3,3417.8,1.047]
[1721243708653,0.612472,3418.0,3417.8,2.9258]
[1721243708821,0.612472,3417.9,3417.8,2.9258]
[1721243709016,0.66429584,3417.9,3417.8,3.9728]
[1721243709220,0.05182384,3417.9,3417.8,3.9728]
[1721243710245,0.05182384,3417.9,3417.8,1.047]
[1721243710653,0.05182384,3417.9,3417.8,3.97285]
[1721243711332,0.612472,3418.1,3417.8,3.97285]
[1721243711545,0.612472,3418.1,3418.0,1.047]
[1721243712172,0.612472,3418.2,3418.0,1.047]
[1721243712320,0.612472,3418.2,3418.1,2.9256]
[1721243712671,0.612472,3418.3,3418.2,2.92551]
[1721243712960,0.612472,3418.3,3418.2,3.97251]
[1721243713730,0.91862059,3418.5,3418.3,2.92543]
[1721243713924,0.61215132,3418.4,3418.3,2.92543]
[1721243714133,0.61215132,3418.4,3418.3,3.97243]
[1721243715466,0.91862059,3418.5,3418.3,3.97243]
[1721243715824,0.61208069,3418.4,3418.3,3.97243]
[1721243717334,0.61208069,3418.5,3418.4,2.92534]
[1721243717539,0.91862059,3418.6,3418.5,2.92525]
[1721243718267,1.2256567,3418.9,3418.8,2.925]
[1721243718468,0.6120824,3419.2,3419.0,2.92483]
[1721243718633,0.6120824,3419.4,3419.3,2.92457]
[1721243718830,1.5302974,3419.9,3419.4,2.92448]
[1721243718831,0.6120824,3419.5,3419.4,2.92448]
[1721243719150,0.6120824,3419.6,3419.5,2.9244]
[1721243719351,1.2256567,3420.0,3419.6,2.92431]
[1721243719352,0.6120824,3419.7,3419.6,2.92431]
[1721243719522,1.2256567,3420.0,3419.7,2.92423]
[1721243719523,0.6120824,3419.8,3419.7,2.92423]
[1721243719729,0.6120824,3419.8,3419.7,3.97123]
[1721243720141,0.6120824,3419.9,3419.7,3.97123]
[1721243720336,0.9181095,3420.0,3419.9,2.92406]
[1721243720337,0.6120824,3420.0,3419.9,2.92406]
[1721243720565,0.6120824,3420.1,3419.9,2.92406]
[1721243720738,0.6120824,3420.2,3420.0,2.92396]
[1721243721258,0.9181095,3420.4,3420.0,2.92396]
[1721243721259,0.6120824,3420.3,3420.0,2.92396]
[1721243721428,0.6120824,3420.2,3420.0,2.92396]
[1721243722128,0.6120824,3420.2,3419.8,2.92414]
[1721243722377,0.6120824,3420.2,3419.9,2.92405]
[1721243724231,0.6120824,3420.3,3419.9,2.92405]
[1721243725155,0.6120824,3420.4,3419.9,2.92405]
[1721243725545,0.9181095,3420.5,3419.9,2.92405]
[1721243725546,0.6120824,3420.3,3419.9,2.92405]
[1721243725753,0.6120824,3420.3,3420.0,2.92397]
[1721243726378,0.6120824,3420.4,3420.0,2.92397]
[1721243727738,0.05011433,3420.3,3420.0,2.92397]
[1721243727939,0.05011433,3420.3,3420.1,2.92388]
[1721243729470,0.6120824,3420.5,3420.1,5.84769]
[1721243729672,0.05035259,3420.2,3420.1,2.92381]
[1721243729841,0.6120824,3420.5,3420.2,2.92379]
[1721243730044,0.6120824,3420.7,3420.2,2.92379]
[1721243730553,0.05036245,3420.6,3420.2,2.92379]
[1721243731908,0.07526635,3420.6,3420.2,2.92379]
[1721243732190,0.07526635,3420.6,3420.4,2.92361]
[1721243732406,0.6120824,3420.8,3420.2,2.92374]
[1721243732559,0.07535505,3420.5,3420.3,2.92371]
[1721243732759,0.6120824,3420.8,3420.3,2.92371]
[1721243732981,0.07535505,3420.4,3420.3,2.92371]
[1721243733304,0.6120824,3420.8,3420.3,2.92371]
[1721243733454,0.07535505,3420.4,3420.3,2.92371]
[1721243733657,3.6120824,3420.8,3420.3,2.92371]
[1721243733879,0.07535505,3420.4,3420.3,2.92371]
[1721243734077,3.0,3420.8,3420.3,2.92371]
[1721243734289,0.07535505,3420.4,3420.3,2.92371]
[1721243734474,3.0,3420.8,3420.3,2.92371]
[1721243734679,0.07535505,3420.4,3420.3,2.92371]
[1721243734887,3.0,3420.8,3420.3,2.92371]
[1721243735080,0.07535505,3420.4,3420.3,2.92371]
[1721243735283,3.0,3420.8,3420.3,2.92371]
[1721243735486,0.07535505,3420.4,3420.3,2.92371]
[1721243735686,3.0,3420.8,3420.3,2.92371]
[1721243736296,0.07537312,3420.7,3420.3,2.92371]
[1721243736661,3.0,3420.8,3420.3,2.92371]
[1721243736858,0.07537312,3420.6,3420.3,2.92371]
[1721243737071,3.0,3420.8,3420.3,2.92371]
[1721243737709,0.07537312,3420.7,3420.3,2.92371]
[1721243738071,3.0,3420.8,3420.3,2.92371]
[1721243738270,0.07537312,3420.6,3420.3,2.92371]
[1721243738519,0.07537312,3420.5,3420.3,2.92371]
[1721243738737,3.0,3420.8,3420.3,2.92371]
[1721243739327,0.07537312,3420.7,3420.3,2.92371]
[1721243739684,3.0,3420.8,3420.3,2.92371]
[1721243740082,5.92317,3421.0,3420.3,2.92371]
[1721243740314,0.07537312,3420.7,3420.3,2.92371]
[1721243740620,0.07537312,3420.9,3420.3,2.92364]
[1721243740819,5.92317,3421.0,3420.3,2.92364]
[1721243741121,5.92312,3421.0,3420.3,5.84728]
[1721243741283,0.07537312,3420.9,3420.3,5.84728]
[1721243741480,0.07537312,3420.9,3420.3,5.84731]
[1721243742307,0.07537312,3420.9,3420.5,1.047]
[1721243743727,0.07537312,3420.9,3420.7,1.047]
[1721243749220,3.0,3421.1,3420.7,1.047]
[1721243749439,0.07537805,3420.8,3420.7,1.047]
[1721243749929,3.0,3421.1,3420.7,1.047]
[1721243750097,0.07537805,3421.0,3420.7,1.047]
[1721243750294,2.99849805,3421.0,3420.5,1.047]
[1721243750499,3.0,3420.9,3420.5,1.047]
[1721243751042,0.07537805,3420.8,3420.5,1.047]
[1721243753451,0.07537805,3420.8,3420.7,3.97037]
[1721243753669,0.07537805,3420.8,3420.7,9.20634]
[1721243753848,7.37,3421.7,3421.3,2.9228]
[1721243754157,13.2681095,3422.2,3421.5,3.96968]
[1721243754158,0.0679521,3421.6,3421.5,3.96968]
[1721243754360,2.92214,3422.2,3421.5,3.96968]
[1721243754563,5.37374,3422.3,3421.5,3.96968]
[1721243754564,0.0679521,3422.1,3422.0,1.047]
[1721243754764,2.92204,3422.3,3422.0,1.047]
[1721243754924,0.06804732,3422.2,3422.0,1.047]
[1721243755125,2.92204,3422.3,3422.0,1.047]
[1721243755448,0.06804732,3422.2,3422.0,1.047]
[1721243755864,2.9221,3422.2,3422.0,1.047]
[1721243756071,2.9221,3422.2,3421.5,2.92268]
[1721243756072,0.06804732,3422.1,3421.8,1.047]
[1721243761123,0.06804732,3422.1,3422.0,1.047]
[1721243761775,0.06804732,3422.1,3421.8,1.047]
[1721243763097,5.84394,3422.4,3421.8,1.047]
[1721243763273,0.06823775,3422.0,3421.8,1.047]
[1721243763472,2.92203,3422.3,3421.8,1.047]
[1721243763776,2.92203,3422.3,3421.9,1.047]
[1721243764092,0.06823775,3422.2,3421.9,1.047]
[1721243764498,2.92203,3422.3,3421.9,1.047]
[1721243764663,0.06823775,3422.1,3421.9,1.047]
[1721243764864,2.92203,3422.3,3421.9,1.047]
[1721243765106,0.06823775,3422.0,3421.9,1.047]
[1721243765310,2.9221,3422.2,3421.9,1.047]
[1721243765511,0.06823775,3422.0,3421.9,1.047]
[1721243765666,2.9221,3422.2,3421.9,1.047]
[1721243765864,0.06823775,3422.0,3421.9,1.047]
[1721243766069,2.9221,3422.2,3421.9,1.047]
[1721243766273,0.06823775,3422.0,3421.9,1.047]
[1721243766884,3.5340624,3422.4,3421.9,1.047]
[1721243767521,0.06823775,3422.3,3422.1,1.047]
[1721243767885,3.0,3422.4,3422.1,1.047]
[1721243768081,0.06837068,3422.2,3422.1,1.047]
[1721243768641,3.0,3422.4,3422.1,1.047]
[1721243768804,0.06837068,3422.2,3422.1,1.047]
[1721243769007,3.0,3422.4,3422.1,1.047]
[1721243769223,0.06837068,3422.3,3422.1,1.047]
[1721243772153,0.06837068,3422.3,3422.1,4.591996]
[1721243772461,2.92165,3422.8,3422.1,4.591996]
[1721243772606,0.06843301,3422.2,3422.1,3.544996]
[1721243772812,2.92165,3422.8,3422.1,4.591996]
[1721243773025,0.06843301,3422.7,3422.5,1.047]
[1721243773226,2.92165,3422.8,3422.5,1.047]
[1721243773443,0.06843301,3422.7,3422.5,1.047]
[1721243774038,2.92165,3422.8,3422.5,1.047]
[1721243774522,0.06843301,3422.7,3422.5,1.047]
[1721243774861,2.92165,3422.8,3422.5,1.047]
[1721243775057,0.06843301,3422.6,3422.5,1.047]
[1721243775440,2.92165,3422.8,3422.5,1.047]
[1721243775636,0.06843301,3422.6,3422.5,1.047]
[1721243775943,2.92165,3422.8,3422.6,2.373]
[1721243776154,3.0,3423.1,3422.7,1.047]
[1721243776155,3.6120824,3423.1,3422.7,1.047]
[1721243776326,0.6120824,3423.1,3422.7,1.047]
[1721243776668,3.0,3423.1,3422.7,1.047]
[1721243777356,3.6120824,3423.1,3422.7,1.047]
[1721243777677,3.0,3423.1,3422.7,1.047]
[1721243777877,5.92133,3423.1,3422.7,1.047]
[1721243778026,2.92143,3423.0,3422.7,1.047]
[1721243778229,5.9215,3422.9,3422.6,1.047]
[1721243778528,2.92141,3423.0,3422.6,1.047]
[1721243778731,3.0,3422.9,3422.6,1.047]
[1721243779142,3.0,3422.9,3422.0,5.37103]
[1721243779444,2.92199,3422.4,3421.7,5.37131]
[1721243779758,2.92199,3422.4,3421.2,7.38]
[1721243779759,2.92224,3422.1,3421.4,3.4958]
[1721243779931,2.92237,3421.9,3421.4,3.4958]
[1721243780126,2.92237,3421.9,3421.4,1.047]
[1721243780924,2.92237,3421.9,3421.6,1.047]
[1721243781139,2.92224,3422.1,3421.8,1.047]
[1721243781540,3.5339924,3422.5,3422.0,1.047]
[1721243781765,6.1533295,3422.6,3422.1,1.047]
[1721243781766,5.92198,3422.4,3422.1,1.047]
[1721243781952,2.92202,3422.3,3422.1,1.047]
[1721243782171,2.92202,3422.3,3421.9,1.047]
[1721243782482,2.92202,3422.3,3421.6,5.3427]
[1721243783437,2.92218,3422.1,3421.6,2.4201]
[1721243784579,6.4561924,3422.3,3421.6,2.4201]
[1721243784897,2.92219,3422.1,3421.6,3.246663]
[1721243785386,3.5341024,3422.3,3421.6,6.169193]
[1721243785565,2.92202,3422.3,3421.6,6.169193]
[1721243786178,3.5341024,3422.3,3421.6,6.169193]
[1721243786379,2.92221,3422.1,3421.6,2.4201]
[1721243786768,2.92215,3422.2,3421.6,2.4201]
[1721243787176,3.5342324,3422.2,3421.6,2.4201]
[1721243787501,2.92218,3422.1,3421.6,2.4201]
[1721243787882,0.06837068,3422.0,3421.6,2.4201]
[1721243789700,2.99063068,3422.0,3421.3,2.2904]
[1721243790080,2.99063068,3422.0,3421.4,2.92276]
[1721243790709,2.99063068,3422.0,3421.3,5.985779]
[1721243791002,2.99063068,3422.0,3421.3,3.062939]
[1721243791232,0.68045308,3422.0,3421.0,2.4489]
[1721243791411,0.68045308,3422.0,3419.9,2.92405]
[1721243791412,2.92295,3421.2,3420.5,10.30349]
[1721243791580,2.3534,3421.3,3420.1,5.31658]
[1721243791581,2.92316,3421.0,3420.1,5.31658]
[1721243791764,2.92326,3420.9,3420.2,0.531658]
[1721243791966,2.92353,3420.6,3419.8,5.43611]
[1721243792184,2.92353,3420.6,3419.3,2.92457]
[1721243792185,2.92373,3420.3,3419.6,2.3927]
[1721243792391,2.92364,3420.4,3419.0,7.38]
[1721243792392,0.6120824,3420.4,3419.1,5.31742]
[1721243792668,0.6120824,3420.4,3419.0,7.38]
[1721243792669,2.92411,3419.9,3419.0,2.92482]
[1721243792890,2.92411,3419.9,3419.2,2.92463]
[1721243793091,0.6120824,3420.1,3419.3,3.509515]
[1721243793092,0.06829047,3419.8,3419.3,3.509515]
[1721243793470,2.92397,3420.0,3419.3,3.509515]
[1721243793667,0.06790632,3419.7,3419.5,2.92433]
[1721243793895,3.0,3420.3,3419.6,2.92431]
[1721243794092,5.92373,3420.3,3419.6,2.92431]
[1721243794308,0.0678012,3420.2,3419.6,2.92431]
[1721243794471,0.0678012,3420.2,3419.7,2.92422]
[1721243795111,0.0678012,3420.2,3419.5,2.92433]
[1721243795326,2.9239,3420.1,3419.4,2.92448]
[1721243795629,2.99182134,3420.0,3419.2,2.9246]
[1721243795930,2.99182134,3420.0,3419.3,2.92456]
[1721243799702,2.99182134,3420.0,3419.4,2.92447]
[1721243800430,0.06779134,3420.0,3419.4,2.92447]
[1721243800628,2.92386,3420.2,3419.4,2.92447]
[1721243800836,0.06779134,3419.9,3419.4,3.8441872]
[1721243801138,2.92386,3420.2,3419.4,3.8441872]
[1721243801321,0.06779134,3419.8,3419.4,3.8441872]
[1721243801492,2.92386,3420.2,3419.5,2.9244]
[1721243801846,3.0,3420.3,3419.8,2.92413]
[1721243801999,2.92355,3420.5,3419.8,2.92413]
[1721243802000,0.06764516,3420.1,3419.8,2.92413]
[1721243802204,3.0,3420.4,3419.8,2.92413]
[1721243802392,0.06764516,3420.0,3419.8,2.92413]
[1721243802599,3.0,3420.4,3419.8,2.92413]
[1721243802918,0.06764516,3419.9,3419.8,2.92413]
[1721243803098,3.0,3420.4,3419.8,2.92413]
[1721243803299,0.06764516,3419.9,3419.8,2.92413]
[1721243803501,3.0,3420.4,3419.8,2.92413]